fUSD/lending_fUSD_20250414
["ID","MTS","AMOUNT","RATE_DAILY","PERIOD"]
[357978814,1744641538397,-2000.0,0.00035616,120]
[357978815,1744641538421,-2000.0,0.00035616,120]
[357978816,1744641538446,-2000.0,0.00035616,120]
[357978817,1744641538470,-2000.0,0.00035616,120]
[357978818,1744641538496,-1496.67967,0.00035616,120]
[357978819,1744641538520,-587.60020479,0.0003596,60]
[357978820,1744641538544,-900.0,0.0003596,60]
[357978821,1744641538570,-900.0,0.00036,37]
[357978822,1744641538594,-500.5485383,0.00036,120]
[357978823,1744641538620,-160.0,0.00036,120]
[357978824,1744641538644,-20000.0,0.00036,120]
[357978825,1744641538670,-150.0,0.00036255,120]
[357978826,1744641538694,-157.041319,0.00036498,120]
[357978827,1744641538720,-150.0,0.0003654,120]
[357978828,1744641538746,-150.0,0.00036606,120]
[357978829,1744641538773,-1000000.0,0.000368,120]
[357978830,1744641538798,-300.0,0.00036986,30]
[357978831,1744641538824,-900.0,0.00037,38]
[357978832,1744641538848,-1299.970542,0.00037,120]
[357978833,1744641538873,-10225.26261596,0.00037,30]
[357978834,1744641538898,-900.0,0.00037056,60]
[357978835,1744641538924,-1966.96521906,0.000372,120]
[357978836,1744641538950,-1966.96521905,0.000372,120]
[357978837,1744641538975,-1966.96521905,0.000372,120]
[357978838,1744641539002,-1966.96521905,0.000372,120]
[357978839,1744641539029,-1966.96521905,0.000372,120]
[357978840,1744641539054,-540.14,0.00037205,30]
[357978841,1744641539080,-157.041319,0.00037498,120]
[357978842,1744641539109,-150.0,0.000375,120]
[357978843,1744641539135,-1400.0,0.000377,120]
[357978844,1744641539162,-150.0,0.00037856,120]
[357978845,1744641539188,-150.0,0.0003794,120]
[357978846,1744641539214,-150.0,0.00037962,120]
[357978847,1744641539241,-177.87699906,0.00037999,120]
[357978848,1744641539266,-4215.0,0.00038,120]
[357978849,1744641539293,-500.0,0.00038,120]
[357978850,1744641539506,-900.0,0.00038,39]
[357978851,1744641539532,-528.82135229,0.00038,120]
[357978852,1744641539557,-543.07814187,0.00038,120]
[357978853,1744641539582,-150.0,0.00038017,120]
[357978854,1744641539608,-150.0,0.00038023,120]
[357978855,1744641539632,-812.69068245,0.00038152,60]
[357978856,1744641539656,-171.94174322,0.000384,33]
[357978857,1744641539680,-305.55916632,0.000384,33]
[357978858,1744641539704,-157.041319,0.00038498,120]
[357978859,1744641539730,-150.0,0.00038515,120]
[357978860,1744641539755,-150.0,0.00038775,120]
[357978861,1744641539779,-218.2336069,0.00039,120]
[357978862,1744641539804,-900.0,0.00039,40]
[357978863,1744641539829,-152.76764452,0.00039,120]
[357978864,1744641539854,-390.37168255,0.00039,120]
[357978865,1744641539879,-341.85485738,0.00039,120]
[357978866,1744641539905,-5231.57964841,0.00039,120]
[357978867,1744641539929,-177.95887303,0.00039,120]
[357978868,1744641539956,-20000.0,0.00039,120]
[357978869,1744641539986,-150.0,0.00039387,120]
[357978870,1744641540016,-150.0,0.00039421,120]
[357978871,1744641540043,-157.041319,0.00039498,120]
[357978872,1744641540072,-150.0,0.00039578,120]
[357978873,1744641540100,-406.31668118,0.0003965,120]
[357978874,1744641540128,-150.0,0.00039667,120]
[357978875,1744641540156,-150.0,0.00039755,120]
[357978876,1744641540182,-150.0,0.00039793,120]
[357978877,1744641540210,-843819.92867531,0.000398,120]
[357978878,1744641540240,-969.91,0.0004,30]
[357978879,1744641540266,-3050.93201734,0.0004,30]
[357978880,1744641540295,-194.0,0.0004,120]
[357978881,1744641540321,-436.0,0.0004,120]
[357978882,1744641540347,-1030.0,0.0004,120]
[357978883,1744641540372,-174.00427905,0.0004,30]
[357978884,1744641540398,-900.0,0.0004,41]
[357978885,1744641540422,-17702.48940992,0.0004,30]
[357978886,1744641540447,-196035.66086468,0.0004,30]
[357978887,1744641546538,-134132.87294538,0.0004,30]
[357978888,1744641546565,-500.0,0.0004,120]
[357978889,1744641546592,-726.0,0.0004,120]
[357978890,1744641546618,-564.22035698,0.0004,120]
[357978891,1744641546645,-753.0,0.0004,120]
[357978892,1744641546671,-324.69839068,0.0004,120]
[357978893,1744641546697,-257209.2043614,0.0004,30]
[357978894,1744641546723,-528.82135229,0.0004,120]
[357978895,1744641546749,-543.07814187,0.0004,120]
[357978896,1744641546777,-205.0,0.0004,30]
[357978897,1744641546803,-69436.37908552,0.0004,30]
[357978898,1744641546834,-513.2915538,0.0004,120]
[357978899,1744641546863,-157.041319,0.00040498,120]
[357978900,1744641546892,-150.0,0.0004052,120]
[357978901,1744641546921,-150.0,0.00040633,120]
[357978902,1744641546948,-1000.0,0.00040645,30]
[357978903,1744641546976,-150.0,0.00040679,120]
[357978904,1744641547005,-1000.0,0.00040892,30]
[357978905,1744641547032,-2613.67,0.00040924,59]
[357978906,1744641547059,-900.0,0.00041,42]
[357978907,1744641547086,-1043906.69906324,0.00041,30]
[357978908,1744641547115,-1050.5854,0.00041,120]
[357978909,1744641547142,-1000.0,0.00041,120]
[357978910,1744641547169,-1000.0,0.00041,120]
[357978911,1744641547195,-1000.0,0.00041,120]
[357978912,1744641547221,-924.0,0.00041,120]
[357978913,1744641547246,-10000.0,0.00041,30]
[357978914,1744641547272,-1000.0,0.00041,120]
[357978915,1744641547297,-760.83,0.00041,120]
[357978916,1744641547323,-11283.36516051,0.00041,30]
[357978917,1744641547348,-301910.94056217,0.00041,30]
[357978918,1744641547374,-150.0,0.00041054,120]
[357978919,1744641547401,-150.0,0.00041058,120]
[357978920,1744641547431,-2000.0,0.00041095,120]
[357978921,1744641547459,-2000.0,0.00041095,120]
[357978922,1744641547486,-2000.0,0.00041095,120]
[357978923,1744641547513,-2000.0,0.00041095,120]
[357978924,1744641547540,-2000.0,0.00041095,120]
[357978925,1744641547567,-1922.69123713,0.00041095,120]
[357978926,1744641547592,-350.0,0.00041095,120]
[357978927,1744641547619,-350.0,0.00041095,120]
[357978928,1744641547644,-350.0,0.00041095,120]
[357978929,1744641547670,-350.0,0.00041095,120]
[357978930,1744641547696,-350.0,0.00041095,120]
[357978931,1744641547722,-350.0,0.00041095,120]
[357978932,1744641547748,-350.0,0.00041095,120]
[357978933,1744641547775,-350.0,0.00041095,120]
[357978934,1744641547801,-249.85388557,0.00041095,120]
[357978935,1744641547831,-903.19,0.00041095,120]
[357978936,1744641547860,-1000.0,0.00041095,120]
[357978937,1744641547887,-1000.0,0.00041095,120]
[357978938,1744641547914,-1000.0,0.00041095,120]
[357978939,1744641547942,-1000.0,0.00041095,120]
[357978940,1744641547970,-1000.0,0.00041095,120]
[357978941,1744641547998,-1000.0,0.00041095,120]
[357978942,1744641548026,-1000.0,0.00041095,120]
[357978943,1744641548223,-1000.0,0.00041095,120]
[357978944,1744641548251,-314.85841953,0.00041095,120]
[357978945,1744641548278,-500.0,0.00041095,120]
[357978946,1744641548304,-500.0,0.00041095,120]
[357978947,1744641548330,-500.0,0.00041095,120]
[357978948,1744641548356,-500.0,0.00041095,120]
[357978949,1744641548382,-194.88259176,0.00041095,120]
[357978950,1744641548411,-884.32,0.00041096,30]
[357978951,1744641548436,-300.0,0.00041096,30]
[357978952,1744641548468,-500.0,0.00041096,31]
[357978953,1744641548494,-500.0,0.00041096,31]
[357978954,1744641548527,-500.0,0.00041096,31]
[357978955,1744641548559,-485.68772868,0.00041096,31]
[357978956,1744641548587,-220.63196985,0.00041096,31]
[357978957,1744641548615,-150.0,0.0004131,120]
[357978958,1744641548643,-157.041319,0.00041498,120]
[357978959,1744641548670,-225.46047,0.00041499,120]
[357978960,1744641548696,-2200.0,0.00041567,31]
[357978961,1744641548723,-1600.0,0.00041578,31]
[357978962,1744641548751,-5908.0,0.000416,30]
[357978963,1744641548778,-150.0,0.00041683,120]
[357978964,1744641548805,-266.47,0.000418,120]
[357978965,1744641548831,-906.54151991,0.00041869,60]
[357978966,1744641548857,-25000.0,0.00041869,60]
[357978967,1744641548885,-25000.0,0.00041869,60]
[357978968,1744641548911,-2506.27938632,0.00041869,60]
[357978969,1744641548940,-150.0,0.00041877,120]
[357978970,1744641548969,-5420.24302875,0.00041966,60]
[357978971,1744641548998,-744.90293476,0.0004197,120]
[357978972,1744641549026,-1182.0,0.0004197,120]
[357978973,1744641549054,-252.0,0.0004197,120]
[357978974,1744641549082,-252.0,0.0004197,120]
[357978975,1744641549112,-1182.0,0.0004197,120]
[357978976,1744641549145,-1182.0,0.0004198,120]
[357978977,1744641549175,-252.0,0.0004198,120]
[357978978,1744641549207,-252.0,0.0004198,120]
[357978979,1744641549238,-1182.0,0.0004198,120]
[357978980,1744641549267,-1182.0,0.0004198,120]
[357978981,1744641549295,-252.0,0.0004198,120]
[357978982,1744641549323,-261.59,0.0004198,120]
[357978983,1744641549353,-1191.76,0.0004198,120]
[357978984,1744641549383,-181.63,0.0004199,120]
[357978985,1744641549414,-1182.0,0.0004199,120]
[357978986,1744641549443,-252.0,0.0004199,120]
[357978987,1744641549474,-252.0,0.0004199,120]
[357978988,1744641549503,-1182.0,0.0004199,120]
[357978989,1744641549532,-1182.0,0.0004199,120]
[357978990,1744641549562,-252.0,0.0004199,120]
[357978991,1744641549595,-1182.0,0.0004199,120]
[357978992,1744641549626,-252.0,0.0004199,120]
[357978993,1744641549655,-3000.0,0.00042,60]
[357978994,1744641549683,-3000.0,0.00042,60]
[357978995,1744641549713,-500.0,0.00042,120]
[357978996,1744641549745,-160.0,0.00042,120]
[357978997,1744641549772,-2000.0,0.00042,30]
[357978998,1744641549818,-397.0,0.00042,30]
[357978999,1744641549864,-864.29857253,0.00042,120]
[357979000,1744641549912,-548.43,0.00042,120]
[357979001,1744641549941,-540.14,0.00042096,30]
[357979002,1744641549970,-181.041416,0.00042298,120]
[357979003,1744641550001,-180.041416,0.00042398,120]
[357979004,1744641550031,-903.19,0.00042465,120]
[357979005,1744641550063,-157.041319,0.00042498,120]
[357979006,1744641550094,-150.0,0.00042654,120]
[357979007,1744641550127,-150.0,0.00042753,120]
[357979008,1744641550156,-1000.0,0.000428,120]
[357979009,1744641550186,-1000000.0,0.000428,120]
[357979010,1744641550215,-150.0,0.00042856,120]
[357979011,1744641550243,-183.23667013,0.0004288,120]
[357979012,1744641550270,-169.73042449,0.000429,120]
[357979013,1744641550297,-5243.15198341,0.00043,120]
[357979014,1744641550323,-237.0,0.00043,30]
[357979015,1744641550350,-1057.64270457,0.00043,120]
[357979016,1744641550377,-1086.15628374,0.00043,120]
[357979017,1744641550405,-150.0,0.00043183,120]
[357979018,1744641550432,-2000.0,0.00043234,31]
[357979019,1744641550459,-271.14068528,0.000434,120]
[357979020,1744641550490,-150.0,0.00043664,120]
[357979021,1744641550517,-644.62696838,0.000437,120]
[357979022,1744641550544,-1000.0,0.00043774,30]
[357979023,1744641550573,-150.0,0.00043786,120]
[357979024,1744641550599,-187.03491618,0.000438,120]
[357979025,1744641550625,-2082.99005291,0.000438,90]
[357979026,1744641550874,-150.0,0.00043809,120]
[357979027,1744641550918,-150.0,0.00043834,120]
[357979028,1744641550946,-903.19,0.00043835,120]
[357979029,1744641550973,-500.0,0.00043836,120]
[357979030,1744641551002,-500.0,0.00043836,120]
[357979031,1744641551033,-500.0,0.00043836,120]
[357979032,1744641551060,-500.0,0.00043836,120]
[357979033,1744641551089,-500.0,0.00043836,120]
[357979034,1744641551118,-500.0,0.00043836,120]
[357979035,1744641551147,-500.0,0.00043836,120]
[357979036,1744641551176,-500.0,0.00043836,120]
[357979037,1744641551205,-500.0,0.00043836,120]
[357979038,1744641551232,-500.0,0.00043836,120]
[357979039,1744641551264,-500.0,0.00043836,120]
[357979040,1744641551291,-500.0,0.00043836,120]
[357979041,1744641551325,-500.0,0.00043836,120]
[357979042,1744641551353,-500.0,0.00043836,120]
[357979043,1744641551385,-500.0,0.00043836,120]
[357979044,1744641551415,-500.0,0.00043836,120]
[357979045,1744641551447,-500.0,0.00043836,120]
[357979046,1744641551476,-500.0,0.00043836,120]
[357979047,1744641551508,-500.0,0.00043836,120]
[357979048,1744641551539,-500.0,0.00043836,120]
[357979049,1744641551568,-500.0,0.00043836,120]
[357979050,1744641551596,-500.0,0.00043836,120]
[357979051,1744641551623,-500.0,0.00043836,120]
[357979052,1744641551650,-500.0,0.00043836,120]
[357979053,1744641551677,-500.0,0.00043836,120]
[357979054,1744641551703,-500.0,0.00043836,120]
[357979055,1744641551729,-500.0,0.00043836,120]
[357979056,1744641551756,-500.0,0.00043836,120]
[357979057,1744641551783,-500.0,0.00043836,120]
[357979058,1744641551808,-500.0,0.00043836,120]
[357979059,1744641551834,-500.0,0.00043836,120]
[357979060,1744641551859,-500.0,0.00043836,120]
[357979061,1744641551887,-500.0,0.00043836,120]
[357979062,1744641551913,-500.0,0.00043836,120]
[357979063,1744641551939,-500.0,0.00043836,120]
[357979064,1744641551965,-347.87662363,0.00043836,120]
[357979065,1744641551992,-500.0,0.00043836,120]
[357979066,1744641552020,-500.0,0.00043836,120]
[357979067,1744641552048,-630.88961269,0.00043836,120]
[357979068,1744641552075,-500.0,0.00043836,120]
[357979069,1744641552102,-500.0,0.00043836,120]
[357979070,1744641552132,-500.0,0.00043836,120]
[357979071,1744641552159,-500.0,0.00043836,120]
[357979072,1744641552186,-500.0,0.00043836,120]
[357979073,1744641552215,-500.0,0.00043836,120]
[357979074,1744641552242,-500.0,0.00043836,120]
[357979075,1744641552269,-500.0,0.00043836,120]
[357979076,1744641552295,-500.0,0.00043836,120]
[357979077,1744641552320,-500.0,0.00043836,120]
[357979078,1744641552345,-500.0,0.00043836,120]
[357979079,1744641552370,-500.0,0.00043836,120]
[357979080,1744641552396,-500.0,0.00043836,120]
[357979081,1744641552422,-450.0,0.00043836,120]
[357979082,1744641552448,-500.0,0.00043836,120]
[357979083,1744641552473,-500.0,0.00043836,120]
[357979084,1744641552499,-500.0,0.00043836,120]
[357979085,1744641552524,-500.0,0.00043836,120]
[357979086,1744641552550,-500.0,0.00043836,120]
[357979087,1744641552574,-500.0,0.00043836,120]
[357979088,1744641552599,-500.0,0.00043836,120]
[357979089,1744641552623,-550.0,0.00043836,120]
[357979090,1744641552653,-500.0,0.00043836,120]
[357979091,1744641552680,-500.0,0.00043836,120]
[357979092,1744641552707,-500.0,0.00043836,120]
[357979093,1744641552734,-500.0,0.00043836,120]
[357979094,1744641552762,-500.0,0.00043836,120]
[357979095,1744641552789,-500.0,0.00043836,120]
[357979096,1744641552816,-500.0,0.00043872,120]
[357979097,1744641552841,-1883.87021,0.00043888,30]
[357979098,1744641552866,-3840.22810325,0.000439,120]
[357979099,1744641552893,-150.0,0.00043974,120]
[357979100,1744641552920,-4094.21351652,0.00043987,120]
[357979101,1744641552947,-590.5327964,0.0004399,30]
[357979102,1744641552973,-1000.0,0.00044,120]
[357979103,1744641553001,-750.0,0.00044,120]
[357979104,1744641553027,-200.0,0.00044,120]
[357979105,1744641553052,-752.47395703,0.00044,120]
[357979106,1744641553077,-3153.29944302,0.00044,120]
[357979107,1744641553104,-151.10617905,0.00044,120]
[357979108,1744641553305,-180.79972263,0.00044,120]
[357979109,1744641553331,-525.73244052,0.00044,120]
[357979110,1744641553356,-110088.51554741,0.00044,120]
[357979111,1744641553381,-243.19494909,0.00044,120]
[357979112,1744641553407,-103599.86,0.00044,60]
[357979113,1744641553432,-510.02674085,0.00044072,120]
[357979114,1744641553457,-1883.87021,0.00044088,30]
[357979115,1744641553482,-151.0,0.000441,100]
[357979116,1744641553527,-500.0,0.0004422,30]
[357979117,1744641553554,-1883.87021,0.00044288,30]
[357979118,1744641553585,-391.70425403,0.0004439,120]
[357979119,1744641553611,-1883.87021,0.00044488,30]
[357979120,1744641553636,-8104.73129299,0.00044586,120]
[357979121,1744641553661,-1883.87021,0.00044688,30]
[357979122,1744641553687,-150.0,0.00044714,120]
[357979123,1744641553713,-687.32686792,0.000448,30]
[357979124,1744641553738,-250.23,0.000448,120]
[357979125,1744641553764,-340.54649463,0.000448,120]
[357979126,1744641553791,-1883.87021,0.00044888,30]
[357979127,1744641553818,-332.13666707,0.000449,30]
[357979128,1744641553844,-965.61530558,0.00045,120]
[357979129,1744641553870,-507.39439343,0.00045,120]
[357979130,1744641553895,-284.22220333,0.00045,120]
[357979131,1744641553922,-237.85121516,0.00045,120]
[357979132,1744641553948,-309.0,0.00045,120]
[357979133,1744641553974,-2137.82697103,0.00045,120]
[357979134,1744641554001,-1630.72351425,0.00045,120]
[357979135,1744641554026,-2000.0,0.00045,30]
[357979136,1744641554052,-267.28785761,0.00045,120]
[357979137,1744641554077,-241.85407234,0.00045,120]
[357979138,1744641554103,-881.8535448,0.00045,120]
[357979139,1744641554131,-234.65530289,0.00045,120]
[357979140,1744641554159,-4355.38,0.00045,120]
[357979141,1744641554184,-4355.38,0.00045,120]
[357979142,1744641554211,-4355.38,0.00045,120]
[357979143,1744641554236,-4355.38,0.00045,120]
[357979144,1744641554262,-4355.38,0.00045,120]
[357979145,1744641554288,-151.0,0.00045,120]
[357979146,1744641554313,-359.2,0.00045,120]
[357979147,1744641554338,-214.36584176,0.00045,32]
[357979148,1744641554363,-188.59547932,0.00045,120]
[357979149,1744641554398,-4614.35918473,0.00045,120]
[357979150,1744641554430,-50000.0,0.00045,50]
[357979151,1744641554457,-708.59,0.00045,30]
[357979152,1744641554485,-1883.87021,0.00045088,30]
[357979153,1744641554515,-151.0,0.000451,101]
[357979154,1744641554544,-69973.64900512,0.00045123,30]
[357979155,1744641554572,-903.19,0.00045205,120]
[357979156,1744641554601,-300.0,0.00045205,30]
[357979157,1744641554630,-1883.87021,0.00045288,30]
[357979158,1744641554658,-150.0,0.00045307,120]
[357979159,1744641554686,-1883.87021,0.00045488,30]
[357979160,1744641554713,-150.0,0.00045574,120]
[357979161,1744641554741,-3163.61186975,0.000456,120]
[357979162,1744641554769,-1883.87021,0.00045688,30]
[357979163,1744641554796,-158.64435774,0.000457,120]
[357979164,1744641554824,-537.6845,0.00045847,30]
[357979165,1744641554852,-150.0,0.00045872,120]
[357979166,1744641554881,-1883.87021,0.00045888,30]
[357979167,1744641554911,-1132.02695412,0.000459,119]
[357979168,1744641554943,-3085.83320754,0.00046,30]
[357979169,1744641554975,-300.0,0.00046,120]
[357979170,1744641555010,-1200.0,0.00046,120]
[357979171,1744641555046,-1199.60821351,0.00046,120]
[357979172,1744641555078,-587.05137069,0.00046,60]
[357979173,1744641555110,-459.74129284,0.00046,120]
[357979174,1744641555141,-1322.05338072,0.00046,120]
[357979175,1744641555171,-1357.69535468,0.00046,120]
[357979176,1744641555202,-3472.08,0.00046,120]
[357979177,1744641555230,-833.74,0.00046,120]
[357979178,1744641555262,-1858.51,0.00046,120]
[357979179,1744641555289,-1266.58275798,0.0004608,30]
[357979180,1744641555316,-1883.87021,0.00046088,30]
[357979181,1744641555344,-151.0,0.000461,102]
[357979182,1744641555372,-518.5,0.00046176,30]
[357979183,1744641555398,-1883.87021,0.00046288,30]
[357979184,1744641555617,-1883.87021,0.00046488,30]
[357979185,1744641555643,-359.0,0.000465,120]
[357979186,1744641555670,-903.19,0.00046575,120]
[357979187,1744641555695,-2000.0,0.00046575,120]
[357979188,1744641555720,-1800.0,0.00046575,120]
[357979189,1744641555747,-1883.87021,0.00046688,30]
[357979190,1744641555771,-1000.0,0.00046903,30]
[357979191,1744641555799,-540.14,0.00046986,120]
[357979192,1744641555824,-591.80953035,0.00047,30]
[357979193,1744641555848,-246.32520489,0.00047,120]
[357979194,1744641555874,-2000.0,0.00047,120]
[357979195,1744641555900,-219.70739322,0.00047,120]
[357979196,1744641555926,-469.97436642,0.00047,120]
[357979197,1744641555956,-198.7708084,0.00047,120]
[357979198,1744641555982,-179.0,0.00047,120]
[357979199,1744641556008,-1883.87021,0.00047088,30]
[357979200,1744641556034,-151.0,0.000471,103]
[357979201,1744641556060,-1883.87021,0.00047288,30]
[357979202,1744641556086,-1883.87021,0.00047488,30]
[357979203,1744641556110,-218.88074487,0.000475,120]
[357979204,1744641556139,-2200.73740072,0.000475,120]
[357979205,1744641556165,-599.60298507,0.00047546,30]
[357979206,1744641556191,-200.0,0.00047546,30]
[357979207,1744641556218,-557.5788265,0.00047669,30]
[357979208,1744641556245,-1883.87021,0.00047688,30]
[357979209,1744641556271,-500.0,0.00047697,30]
[357979210,1744641556296,-455.79630711,0.000478,120]
[357979211,1744641556323,-240.90541175,0.000478,120]
[357979212,1744641556347,-237.70785619,0.000478,120]
[357979213,1744641556373,-578.20924308,0.00047861,30]
[357979214,1744641556398,-1883.87021,0.00047888,30]
[357979215,1744641556424,-903.19,0.00047945,120]
[357979216,1744641556449,-1020.69769186,0.00048,120]
[357979217,1744641556475,-300.0,0.00048,120]
[357979218,1744641556502,-862.0,0.00048,120]
[357979219,1744641556528,-2000.0,0.00048,120]
[357979220,1744641556554,-1200.0,0.00048,120]
[357979221,1744641556580,-295.22,0.00048,60]
[357979222,1744641556605,-23611.0,0.00048,120]
[357979223,1744641556630,-5050.0,0.00048,30]
[357979224,1744641556656,-1322.05338071,0.00048,120]
[357979225,1744641556682,-1357.69535467,0.00048,120]
[357979226,1744641556707,-1883.87021,0.00048088,30]
[357979227,1744641556733,-151.0,0.000481,104]
[357979228,1744641556759,-223.57533,0.000482,120]
[357979229,1744641556785,-163.01382,0.000482,120]
[357979230,1744641556811,-1883.87021,0.00048288,30]
[357979231,1744641556836,-2908.95135391,0.000484,120]
[357979232,1744641556861,-1883.87021,0.00048488,30]
[357979233,1744641556887,-300.0,0.000485,90]
[357979234,1744641556915,-2434.0,0.000485,120]
[357979235,1744641556940,-322.65173465,0.000486,120]
[357979236,1744641556966,-1883.87021,0.00048688,30]
[357979237,1744641556992,-2200.00000009,0.00048765,45]
[357979238,1744641557017,-449.44034444,0.000488,120]
[357979239,1744641557043,-1000.0,0.000488,120]
[357979240,1744641557070,-1883.87021,0.00048888,30]
[357979241,1744641557095,-780.71108033,0.000489,120]
[357979242,1744641557125,-1072.43,0.000489,120]
[357979243,1744641557153,-304.5172355,0.0004899,30]
[357979244,1744641557180,-2000.0,0.00049,120]
[357979245,1744641557209,-1598.95974102,0.00049,120]
[357979246,1744641557235,-575.72381405,0.00049,120]
[357979247,1744641557263,-3841.74003996,0.00049,120]
[357979248,1744641557288,-296.72681162,0.00049,30]
[357979249,1744641557313,-320.3928825,0.00049,120]
[357979250,1744641557340,-1883.87021,0.00049088,30]
[357979251,1744641557366,-151.0,0.000491,105]
[357979252,1744641557392,-2000.0,0.00049248,31]
[357979253,1744641557419,-1883.87021,0.00049288,30]
[357979254,1744641557445,-32794.82,0.000493,30]
[357979255,1744641557471,-441.60225586,0.00049315,120]
[357979256,1744641557498,-355.0,0.00049315,30]
[357979257,1744641557524,-3000.0,0.00049315,120]
[357979258,1744641557551,-3000.0,0.00049315,120]
[357979259,1744641557577,-3000.0,0.00049315,120]
[357979260,1744641557734,-3000.0,0.00049315,120]
[357979261,1744641557763,-3034.87472475,0.00049315,120]
[357979262,1744641557789,-1216.64,0.00049315,120]
[357979263,1744641557815,-641.56,0.00049315,120]
[357979264,1744641557843,-903.19,0.00049315,120]
[357979265,1744641557869,-1000.0,0.00049315,120]
[357979266,1744641557895,-3097.03840553,0.00049315,120]
[357979267,1744641557922,-195.32597276,0.00049315,120]
[357979268,1744641557948,-300.0,0.00049315,30]
[357979269,1744641557973,-458.87,0.00049315,60]
[357979270,1744641558001,-152.65588035,0.0004932,120]
[357979271,1744641558029,-152.65588035,0.0004932,120]
[357979272,1744641558058,-152.65588035,0.0004932,120]
[357979273,1744641558086,-152.65588035,0.0004932,120]
[357979274,1744641558117,-152.65588035,0.0004932,120]
[357979275,1744641558146,-152.65,0.0004932,120]
[357979276,1744641558174,-152.65588035,0.0004932,120]
[357979277,1744641558202,-152.65588035,0.0004932,120]
[357979278,1744641558229,-152.65588035,0.0004932,120]
[357979279,1744641558258,-152.65588035,0.0004932,120]
[357979280,1744641558286,-152.65588035,0.0004932,120]
[357979281,1744641558314,-152.65588035,0.0004932,120]
[357979282,1744641558343,-152.65588035,0.0004932,120]
[357979283,1744641558375,-152.65588035,0.0004932,120]
[357979284,1744641558407,-152.65588035,0.0004932,120]
[357979285,1744641558439,-152.65588035,0.0004932,120]
[357979286,1744641558473,-152.65588035,0.0004932,120]
[357979287,1744641558515,-152.65588035,0.0004932,120]
[357979288,1744641558551,-152.65588035,0.0004932,120]
[357979289,1744641558584,-152.65,0.0004932,120]
[357979290,1744641558615,-229.44186329,0.0004932,120]
[357979291,1744641558648,-229.44186329,0.0004932,120]
[357979292,1744641558681,-229.44186329,0.0004932,120]
[357979293,1744641558712,-229.44186329,0.0004932,120]
[357979294,1744641558743,-229.44186329,0.0004932,120]
[357979295,1744641558779,-229.44186329,0.0004932,120]
[357979296,1744641558824,-229.44186329,0.0004932,120]
[357979297,1744641558857,-229.44186329,0.0004932,120]
[357979298,1744641558890,-229.44186329,0.0004932,120]
[357979299,1744641558921,-229.44186329,0.0004932,120]
[357979300,1744641558952,-229.44186329,0.0004932,120]
[357979301,1744641558982,-229.44186329,0.0004932,120]
[357979302,1744641559016,-229.44186329,0.0004932,120]
[357979303,1744641559047,-229.44186329,0.0004932,120]
[357979304,1744641559077,-229.44186329,0.0004932,120]
[357979305,1744641559108,-229.44186329,0.0004932,120]
[357979306,1744641559143,-229.44186329,0.0004932,120]
[357979307,1744641559173,-229.44186329,0.0004932,120]
[357979308,1744641559202,-229.44186329,0.0004932,120]
[357979309,1744641559231,-229.44,0.0004932,120]
[357979310,1744641559263,-535.36434767,0.0004932,120]
[357979311,1744641559291,-535.36434767,0.0004932,120]
[357979312,1744641559320,-535.36434767,0.0004932,120]
[357979313,1744641559349,-535.36434767,0.0004932,120]